bitfinex-derivatives/quotes_ETHF0:USTF0_20260226
["timestamp","ask_amount","ask_price","bid_price","bid_amount"]
[1772118797153,0.00362841,2043.1,2042.1,4.87831543]
[1772118797663,0.00362841,2043.1,2042.3,4.87831543]
[1772118798261,5.19477698,2042.9,2042.1,4.87831543]
[1772118798462,5.43952698,2042.8,2041.8,4.87831543]
[1772118799161,5.43956698,2042.5,2041.8,4.87831543]
[1772118799567,5.19477698,2043.0,2041.8,4.87831543]
[1772118800161,5.19477698,2043.0,2041.9,5.37257051]
[1772118800358,0.24474,2042.9,2042.0,4.87831543]
[1772118800666,5.43951698,2042.9,2042.0,4.87831543]
[1772118801262,5.19840539,2043.1,2042.0,4.87831543]
[1772118802168,0.00362841,2043.1,2042.2,4.87831543]
[1772118802564,5.19477698,2042.9,2041.9,4.87831543]
[1772118803265,5.19477698,2042.7,2041.9,4.87831543]
[1772118804266,0.24477,2042.6,2041.9,4.87831543]
[1772118804467,5.43954698,2042.6,2041.7,4.88393632]
[1772118806365,5.12963737,2042.1,2041.3,5.25345764]
[1772118806661,5.12963737,2042.1,2040.4,5.25345764]
[1772118806662,5.12963737,2041.8,2040.4,5.25345764]
[1772118807164,6.954,2042.2,2040.7,5.25345764]
[1772118807365,0.24485,2042.0,2040.7,5.25912285]
[1772118807565,12.08363737,2042.2,2040.9,5.25345764]
[1772118807966,12.08363737,2042.2,2041.1,5.25345764]
[1772118808161,5.12963737,2042.1,2041.1,5.25345764]
[1772118808360,5.37447737,2042.1,2041.0,5.25345764]
[1772118808567,5.12963737,2041.8,2040.8,5.25345764]
[1772118808963,5.37451737,2041.7,2040.8,5.25345764]
[1772118809967,12.32151737,2041.7,2040.8,5.25345764]
[1772118810272,5.12963737,2041.6,2040.8,5.25345764]
[1772118810573,5.13415515,2041.6,2040.8,5.25345764]
[1772118811065,5.12963737,2041.4,2040.7,0.00566521]
[1772118811265,5.37456737,2041.3,2040.7,0.00566521]
[1772118811465,5.37456737,2041.3,2040.7,5.21e-06]
[1772118811667,5.37456737,2041.3,2040.4,5.25345764]
[1772118812574,5.37458737,2041.1,2040.4,5.25748759]
[1772118813075,5.37458737,2041.1,2040.4,0.00402995]
[1772118813272,5.12963737,2040.8,2040.4,0.00402995]
[1772118813469,5.12963737,2040.8,2040.1,5.25345764]
[1772118813972,5.37463737,2040.7,2039.5,5.25345764]
[1772118814275,0.245,2040.7,2039.5,10.51533683]
[1772118814474,0.245,2040.7,2039.6,4.92216952]
[1772118815472,0.245,2040.7,2039.8,4.92216952]
[1772118815675,5.36783186,2040.7,2039.8,4.92216952]
[1772118816676,5.12283186,2041.1,2039.8,4.92216952]
[1772118816974,5.12283186,2041.0,2039.8,4.92216952]
[1772118817975,5.36778186,2041.2,2040.0,4.92216952]
[1772118818172,0.24495,2041.2,2040.0,4.92216952]
[1772118818376,0.24495,2041.2,2040.1,10.3058441]
[1772118818573,5.36778186,2041.2,2040.2,4.92216952]
[1772118819879,6.925,2041.4,2040.2,4.92216952]
[1772118820180,5.12283186,2041.3,2040.2,4.92216952]
[1772118820472,6.917,2041.5,2040.3,4.92216952]
[1772118820679,0.00451778,2041.6,2040.7,4.92216952]
[1772118821275,5.12734964,2041.6,2040.7,4.92216952]
[1772118821977,5.12734964,2041.6,2040.3,4.92216952]
[1772118822279,5.12734964,2041.6,2040.4,4.92216952]
[1772118825780,0.00451778,2041.6,2040.6,4.92216952]
[1772118826378,5.12734964,2041.6,2040.6,4.92216952]
[1772118827380,0.24493,2041.3,2040.4,4.92216952]
[1772118827577,5.12283186,2041.2,2040.4,4.92216952]
[1772118828882,5.12283186,2041.0,2040.0,4.92216952]
[1772118830385,5.12283186,2040.8,2040.0,4.92216952]
[1772118831584,5.12283186,2041.2,2040.0,4.92216952]
[1772118835587,6.889,2041.3,2040.2,4.92216952]
[1772118835791,0.00451778,2041.6,2040.4,4.92216952]
[1772118835792,5.12734964,2041.6,2040.4,4.92216952]
[1772118836193,0.70177671,2041.5,2040.6,4.90461113]
[1772118836395,5.12734964,2041.6,2040.6,4.90461113]
[1772118836691,0.70177681,2041.5,2040.6,4.90461113]
[1772118836887,5.12734964,2041.6,2040.6,4.90461113]
[1772118837094,5.10864796,2041.4,2040.4,4.90461113]
[1772118837988,5.10864796,2041.2,2040.4,4.90461113]
[1772118838194,5.10864796,2041.1,2040.2,4.90461113]
[1772118838891,5.10864796,2041.1,2039.9,4.90461113]
[1772118840996,5.10864796,2040.7,2039.9,4.90461113]
[1772118841197,6.897,2040.7,2039.9,4.90461113]
[1772118841402,12.00564796,2040.7,2039.9,4.90461113]
[1772118841695,6.897,2040.7,2039.9,4.90461113]
[1772118842498,12.00564796,2040.7,2039.9,4.90461113]
[1772118842698,5.10864796,2040.6,2039.9,4.90461113]
[1772118842898,5.10864796,2041.0,2039.9,4.90461113]
[1772118843100,9.00287455,2041.6,2040.2,4.90461113]
[1772118843305,5.11316574,2041.6,2040.5,4.90461113]
[1772118843601,0.00451778,2041.6,2040.6,4.90461113]
[1772118843804,0.00451778,2041.6,2040.6,10.10230237]
[1772118844004,0.00451778,2041.6,2040.7,4.90461113]
[1772118845099,12.00864796,2042.0,2040.7,4.90461113]
[1772118845300,5.10864796,2042.3,2040.9,4.90461113]
[1772118845506,5.10864796,2042.4,2041.1,4.90461113]
[1772118845801,5.10864796,2042.4,2041.3,4.90461113]
[1772118846202,12.00564796,2042.6,2041.3,4.90461113]
[1772118846411,0.00425849,2042.4,2041.5,4.90461113]
[1772118846808,0.00425849,2042.4,2041.5,11.30761113]
[1772118847008,0.00425849,2042.4,2041.6,4.90461113]
[1772118847411,5.10864796,2042.9,2041.6,4.90461113]
[1772118847711,5.10864796,2042.9,2041.8,4.90461113]
[1772118848309,6.897,2043.0,2041.9,5.14625428]
[1772118848512,6.90116719,2043.0,2042.0,11.30761113]
[1772118848809,0.00416719,2043.0,2042.1,10.58419959]
[1772118849011,0.00416719,2043.0,2042.2,4.90461113]
[1772118849315,5.10864796,2043.5,2042.2,4.90461113]
[1772118850214,5.11278093,2043.5,2042.2,4.90461113]
[1772118850511,5.10864796,2043.2,2042.2,4.90461113]
[1772118850715,5.10864796,2043.0,2042.1,4.90461113]
[1772118850916,5.10864796,2043.2,2042.1,4.90461113]
[1772118851213,12.00164796,2043.1,2042.1,4.90461113]
[1772118851612,5.10864796,2043.0,2042.1,4.90461113]
[1772118854610,5.10864796,2043.0,2042.0,6.403]
[1772118854808,5.10864796,2043.0,2042.0,4.90461113]
[1772118859314,0.00413297,2043.5,2042.2,4.90461113]
[1772118859315,6.88413297,2043.5,2042.2,4.90461113]
[1772118859619,6.88413297,2043.5,2042.1,0.24483]
[1772118859620,5.11278093,2043.5,2042.4,4.90461113]
[1772118860214,5.11278093,2043.5,2042.6,4.90461113]
[1772118860215,0.00413297,2043.5,2042.6,4.90461113]
[1772118860608,5.10864796,2044.0,2042.6,4.90461113]
[1772118860810,5.10864796,2044.4,2043.0,4.90461113]
[1772118861120,5.10864796,2044.6,2043.4,4.90461113]
[1772118861818,0.00480378,2044.6,2043.6,4.90461113]
[1772118862020,0.00480378,2044.6,2043.7,4.90461113]
[1772118862312,5.11345174,2044.6,2043.7,4.90461113]
[1772118862517,5.10864796,2045.2,2043.9,4.90461113]
[1772118862921,5.35310796,2045.2,2043.9,4.90461113]
[1772118863416,5.35830392,2045.2,2043.9,4.90461113]
[1772118863717,5.10864796,2045.0,2043.9,4.90461113]
[1772118864821,5.10864796,2044.8,2043.7,4.90461113]
[1772118865621,5.10864796,2044.6,2043.7,4.90461113]
[1772118866318,4.96306586,2044.4,2043.4,4.85337326]
[1772118866622,4.96306586,2044.4,2043.5,4.84818875]
[1772118867119,4.96306586,2044.4,2043.3,4.84818875]
[1772118867618,4.96306586,2044.4,2043.3,4.85262142]
[1772118867822,4.96306586,2044.2,2043.3,0.00443267]
[1772118868617,4.96306586,2044.0,2043.3,0.00443267]
[1772118868819,6.869,2043.9,2043.3,0.00443267]
[1772118869026,4.96306586,2043.8,2043.3,0.00443267]
[1772118870020,4.96306586,2043.8,2043.3,4.85262142]
[1772118870325,4.96306586,2044.5,2043.3,4.85262142]
[1772118871319,4.96306586,2044.3,2043.3,4.85262142]
[1772118873220,4.96306586,2043.9,2043.3,0.00443267]
[1772118875329,4.96306586,2043.9,2042.7,4.84818875]
[1772118875531,4.96306586,2043.7,2042.7,4.84818875]
[1772118876429,4.96889762,2043.7,2042.7,4.85423602]
[1772118877825,5.00828521,2043.5,2042.7,0.00604727]
[1772118878530,5.00828521,2043.5,2042.7,5.46632834]
[1772118879232,5.00828521,2043.5,2042.7,0.00604727]
[1772118879626,5.00828521,2043.5,2042.7,5.46632834]
[1772118882120,5.00828521,2043.3,2042.7,0.00604727]
[1772118882321,5.00828521,2043.1,2042.2,5.46028107]
[1772118883335,5.00828521,2043.1,2042.2,0.0055748]
[1772118883732,5.00828521,2043.1,2042.2,5.46585587]
[1772118884833,5.00828521,2042.9,2042.2,0.0055748]
[1772118885034,5.00828521,2042.8,2042.2,0.0055748]
[1772118888042,5.00828521,2042.6,2041.6,15.60028107]
[1772118888242,5.00828521,2042.6,2041.6,5.46028107]
[1772118888740,6.878,2042.9,2041.8,5.46028107]
[1772118888741,5.00828521,2042.8,2041.8,5.46028107]
[1772118888942,5.00828521,2043.0,2042.0,5.46028107]
[1772118889135,5.00828521,2043.0,2042.0,5.46403303]
[1772118890540,11.89628521,2043.2,2042.0,5.46403303]
[1772118890942,5.00828521,2043.1,2042.0,5.46403303]
[1772118891937,5.00828521,2043.3,2042.2,5.46028107]
[1772118893137,5.00828521,2043.3,2042.4,5.46028107]
[1772118895544,5.00828521,2043.3,2042.1,5.46028107]
[1772118897140,5.25298521,2043.3,2042.1,5.46028107]
[1772118897739,5.29755387,2043.1,2042.0,0.00375196]
[1772118897944,5.05284387,2042.9,2042.0,0.00375196]
[1772118898439,5.05284387,2042.7,2042.0,0.00375196]
[1772118899844,5.05284387,2042.7,2042.0,5.17872932]
[1772118900347,5.05284387,2042.9,2042.0,5.17872932]
[1772118900648,5.29758387,2042.9,2042.0,0.00375196]
[1772118901743,5.05284387,2042.2,2041.4,5.17497736]
[1772118901937,5.05284387,2042.1,2041.4,5.17497736]
[1772118902541,5.05879384,2042.1,2041.4,5.17857151]
[1772118902742,5.05284387,2043.0,2041.6,5.17497736]
[1772118902941,5.05284387,2042.8,2041.6,5.17497736]
[1772118903243,11.07439387,2042.6,2041.6,5.17497736]
[1772118903447,5.05284387,2042.2,2041.4,5.17857151]
[1772118903941,0.00413744,2042.2,2041.4,5.17857151]
[1772118904147,5.05698131,2042.2,2041.4,5.17857151]
[1772118904744,5.05698131,2042.2,2041.4,0.00359415]
[1772118905145,5.05284387,2042.0,2041.4,0.00359415]
[1772118905350,5.05284387,2041.8,2040.9,2.04528112]
[1772118905546,5.05284387,2041.6,2040.9,2.04528112]
[1772118905745,5.05284387,2041.6,2041.0,5.17497736]
[1772118906048,5.05284387,2041.8,2041.0,5.17497736]
[1772118906249,5.05284387,2041.8,2041.0,5.18071372]
[1772118906547,5.05284387,2041.8,2041.0,0.00573636]
[1772118906745,5.29771387,2041.8,2041.0,0.00573636]
[1772118907146,5.29771387,2041.8,2040.6,5.17497736]
[1772118907947,5.05284387,2041.6,2040.3,5.17497736]
[1772118908155,5.05284387,2041.1,2040.4,0.00424847]
[1772118908354,5.05284387,2041.0,2040.4,0.00424847]
[1772118909152,5.05284387,2041.0,2040.1,5.17497736]
[1772118909648,5.05284387,2040.8,2039.9,5.17497736]
[1772118909851,5.05284387,2040.8,2039.7,5.17497736]
[1772118910052,5.05284387,2040.6,2039.7,5.17857653]
[1772118910252,5.05678508,2040.6,2039.7,5.17857653]
[1772118910747,5.05284387,2040.5,2039.7,5.17857653]
[1772118910953,0.00394121,2040.6,2039.7,5.17857653]
[1772118911252,5.05678508,2040.6,2039.7,5.17857653]
[1772118911646,5.05678508,2040.6,2039.7,0.00359917]
[1772118912049,5.05284387,2040.4,2039.7,0.00359917]
[1772118913756,5.05284387,2040.4,2039.4,2.01731144]
[1772118914350,5.05284387,2040.4,2039.5,5.17497736]
[1772118914556,5.05284387,2040.4,2039.4,2.01731144]
[1772118914850,5.05284387,2040.4,2039.4,7.19858826]
[1772118915457,5.05284387,2040.2,2039.4,2.0236109]
[1772118915855,5.05284387,2040.4,2039.5,5.17497736]
[1772118916551,5.29788387,2040.4,2039.4,0.00629946]
[1772118916748,5.05284387,2039.9,2039.4,9.46e-06]
[1772118916948,5.05284387,2039.9,2038.4,5.17497736]
[1772118916949,5.05284387,2039.5,2038.4,5.17497736]
[1772118917157,5.05284387,2039.9,2038.8,5.17497736]
[1772118918060,5.05284387,2039.7,2038.8,5.17862371]
[1772118918358,5.05284387,2039.5,2038.8,0.00364635]
[1772118918560,5.05284387,2039.4,2038.8,0.00364635]
[1772118918954,5.05284387,2039.4,2038.4,5.17497736]
[1772118919154,5.05284387,2039.2,2038.2,5.17497736]
[1772118919458,5.05284387,2038.8,2037.8,5.17497736]
[1772118919654,5.05284387,2038.6,2037.8,5.17497736]
[1772118919857,5.05284387,2038.2,2037.3,5.17497736]
[1772118920050,5.05284387,2038.0,2037.0,5.17497736]
[1772118920252,5.05284387,2037.9,2037.0,5.17497736]
[1772118922858,5.05284387,2037.9,2036.7,6.405]
[1772118922859,5.05284387,2037.9,2036.7,11.57997736]
[1772118923056,5.29818387,2037.9,2036.7,5.17497736]
[1772118923662,5.05284387,2037.6,2036.6,0.00535267]
[1772118923862,5.05284387,2037.2,2036.6,0.00535267]
[1772118924055,5.05284387,2037.2,2036.2,6.50573975]
[1772118924262,5.05284387,2037.0,2036.2,1.33076239]
[1772118924460,5.05284387,2036.8,2036.2,1.33076239]
[1772118924760,5.05284387,2037.0,2036.3,5.17497736]
[1772118925161,5.05284387,2037.0,2035.4,2.23843368]
[1772118925162,5.05284387,2036.8,2035.6,5.17497736]
[1772118925357,5.05284387,2036.8,2035.2,5.17497736]
[1772118925358,5.05284387,2036.4,2035.2,5.17497736]
[1772118925554,0.24551,2036.5,2034.8,2.06244102]
[1772118925555,5.05284387,2036.2,2034.9,5.17497736]
[1772118925759,5.05284387,2036.0,2034.9,5.17497736]
[1772118925957,5.11622232,2035.8,2034.2,5.46475547]
[1772118926156,5.11622232,2035.8,2032.9,19.26812]
[1772118926157,5.11622232,2034.4,2032.7,5.46475547]
[1772118926363,5.11622232,2034.1,2032.8,5.46475547]
[1772118926561,8.72174102,2034.3,2032.2,8.11509102]
[1772118926562,5.11622232,2033.9,2032.3,4.31194737]
[1772118926867,5.11622232,2033.7,2032.9,4.31194737]
[1772118927062,5.11622232,2034.0,2033.1,1.81674102]
[1772118927266,5.11622232,2034.0,2033.2,4.37403829]
[1772118927468,5.11622232,2034.7,2033.2,4.37403829]
[1772118927965,5.11622232,2034.7,2033.4,4.37131094]
[1772118928166,5.12256648,2034.7,2033.4,4.37131094]
[1772118928360,5.12256648,2034.7,2033.5,5.69244678]
[1772118928560,5.11622232,2034.5,2033.3,4.37135835]
[1772118929261,5.11622232,2034.5,2033.4,4.72175235]
[1772118929462,0.00634416,2034.7,2033.5,11.12244333]
[1772118929658,5.12256648,2034.7,2033.6,4.71744333]
[1772118929861,5.12256648,2034.7,2033.7,4.71744333]
[1772118930056,5.11622232,2035.3,2034.0,4.71752647]
[1772118930266,5.11622232,2035.9,2034.9,2.43619136]
[1772118930471,5.11622232,2036.2,2035.1,4.71752647]
[1772118930662,5.11622232,2036.6,2035.3,2.43619136]
[1772118930863,5.11622232,2036.6,2035.4,4.71353275]
[1772118931271,5.12132358,2036.6,2035.4,4.71952916]
[1772118931860,5.11622232,2036.4,2035.4,0.00599641]
[1772118932066,5.11622232,2036.4,2035.4,4.54964225]
[1772118932573,5.11622232,2036.0,2035.4,0.00599641]
[1772118932766,5.11622232,2035.8,2034.5,4.59592995]
[1772118933069,6.03964,2036.5,2034.4,6.407]
[1772118933070,5.11622232,2036.5,2035.0,4.61295525]
[1772118933263,5.11622232,2036.3,2035.0,4.61295525]
[1772118933465,5.11622232,2036.1,2035.0,4.61295525]
[1772118933667,5.11622232,2035.9,2035.0,0.00375327]
[1772118934462,6.92,2036.0,2035.0,0.00375327]
[1772118934463,5.11622232,2035.5,2035.0,0.00375327]
[1772118934664,5.11622232,2035.5,2034.0,4.71428296]
[1772118934870,5.11622232,2035.5,2034.4,4.71428296]
[1772118935171,5.11622232,2035.5,2034.4,5.70048984]
[1772118935368,5.11622232,2035.5,2034.2,4.69297981]
[1772118935569,5.11622232,2035.5,2034.2,4.69645258]
[1772118935768,5.11622232,2035.5,2034.4,4.74327784]
[1772118936171,5.11622232,2035.8,2034.6,4.74157631]
[1772118936564,5.11622232,2035.8,2034.7,5.22862378]
[1772118936769,5.11622232,2035.8,2034.5,11.19849062]
[1772118936970,5.11622232,2035.8,2035.0,0.5]
[1772118938369,5.36176232,2036.2,2035.2,4.78818942]
[1772118938672,5.11622232,2036.5,2035.4,4.83657153]
[1772118939270,5.11622232,2036.5,2035.6,4.78418618]
[1772118939673,0.24552,2036.4,2035.3,4.83194501]
[1772118939879,5.11622232,2036.3,2035.3,4.83194501]
[1772118940274,5.11622232,2036.3,2035.5,4.82992752]
[1772118940478,5.11622232,2036.3,2035.2,4.82992752]
[1772118940681,5.11622232,2036.3,2035.2,10.17770075]
[1772118940880,5.11622232,2036.3,2035.3,4.87707044]
[1772118941174,5.36176232,2036.2,2035.0,5.39173549]
[1772118941375,5.11622232,2035.7,2035.0,0.5]
[1772118942279,5.11622232,2035.5,2035.0,0.5]
[1772118942877,5.11622232,2035.5,2035.0,0.49749908]
[1772118943182,5.11622232,2035.3,2034.5,1.99412059]
[1772118943580,5.11622232,2034.9,2034.2,0.00347277]
[1772118943777,5.11622232,2034.7,2034.2,0.00347277]
[1772118944081,5.11622232,2034.7,2033.7,5.46475547]
[1772118945083,5.11622232,2034.5,2033.7,0.00525479]
[1772118945378,5.11622232,2034.3,2033.7,0.00525479]
[1772118945772,5.11622232,2034.3,2033.2,2.01433727]
[1772118945973,5.11622232,2034.1,2033.1,5.46475547]
[1772118946775,5.36195232,2034.7,2033.5,5.46475547]
[1772118946971,5.36195232,2034.7,2033.2,5.56558228]
[1772118946972,5.36195232,2034.7,2033.2,10.78443775]
[1772118947180,5.36195232,2034.7,2033.2,5.46475547]
[1772118947382,5.36195232,2034.7,2033.1,2.68657296]
[1772118947383,5.11622232,2034.7,2033.6,5.46475547]
[1772118947579,5.11622232,2034.7,2033.8,5.46475547]
[1772118948276,5.11622232,2034.5,2033.3,5.46475547]
[1772118948477,5.11622232,2034.1,2033.0,5.46475547]
[1772118948676,5.11622232,2034.1,2033.1,5.46922707]
[1772118949782,5.11622232,2034.1,2033.3,5.46475547]
[1772118949972,0.24578,2034.2,2033.3,5.46475547]
[1772118950177,5.36200232,2034.2,2033.4,11.87275547]
[1772118950582,5.36200232,2034.2,2033.4,6.408]
[1772118951477,5.11622232,2033.7,2032.8,6.409]
[1772118951682,5.11622232,2033.7,2032.6,5.46475547]
[1772118951884,5.11622232,2034.0,2032.9,5.46475547]
[1772118952181,5.11622232,2034.0,2033.0,5.46475547]
[1772118952582,5.11622232,2033.8,2033.0,0.00603398]
[1772118952781,5.11622232,2033.8,2033.0,5.47078945]
[1772118953786,5.11622232,2034.3,2033.0,5.69204159]
[1772118953983,5.11622232,2034.3,2033.2,5.46475547]
[1772118954683,5.11622232,2034.8,2033.4,5.46475547]
[1772118954883,5.11622232,2034.8,2033.6,5.46475547]
[1772118955486,5.11974963,2034.9,2033.8,5.46475547]
[1772118955878,0.00352731,2034.9,2034.0,5.46475547]
[1772118956180,0.00352731,2034.9,2034.2,6.03097565]
[1772118956381,6.28648286,2035.6,2034.2,6.27675565]
[1772118956583,6.28648286,2036.3,2034.6,6.07324248]
[1772118956789,6.28648286,2036.8,2035.4,6.07324248]
[1772118956983,6.28648286,2036.8,2035.6,6.07324248]
[1772118957488,6.29221866,2036.8,2035.6,6.07910654]
[1772118958188,6.28648286,2035.7,2034.3,6.11050214]
[1772118958587,6.28648286,2035.7,2034.8,6.12913097]
[1772118958988,6.28648286,2035.7,2034.8,12.53913097]
[1772118959183,6.28648286,2036.4,2035.0,6.12913097]
[1772118959584,6.28648286,2036.2,2035.1,11.78639673]
[1772118959892,6.28648286,2036.2,2035.0,11.40148508]
[1772118960387,6.28648286,2036.0,2034.8,6.41521693]
[1772118960996,6.28648286,2035.6,2034.8,0.00521693]
[1772118962997,6.28648286,2035.6,2034.8,6.1343479]
[1772118963298,6.28648286,2036.2,2034.9,6.12913097]
[1772118963498,6.28648286,2036.2,2035.1,6.12913097]
[1772118964392,6.28648286,2036.5,2035.3,6.12913097]
[1772118964592,6.28648286,2036.5,2035.4,12.53913097]
[1772118965390,0.24552,2036.4,2035.4,12.53913097]
[1772118965595,6.28648286,2036.3,2035.4,6.41]
[1772118965793,6.28648286,2036.3,2035.4,12.53913097]
[1772118966100,6.28648286,2035.5,2034.8,0.00521693]
[1772118966493,6.28648286,2035.3,2034.8,0.00521693]
[1772118966793,6.29242982,2035.3,2034.8,0.00521693]
[1772118967192,6.29242982,2035.3,2034.3,6.39857613]
[1772118967393,0.00594696,2035.3,2034.3,6.39857613]
[1772118967596,0.00594696,2035.3,2034.4,6.39857613]
[1772118967897,6.31369254,2035.3,2034.1,6.39857613]
[1772118968192,6.30774558,2035.1,2034.1,6.39857613]
[1772118968390,0.00594696,2035.3,2034.1,0.00554004]
[1772118968391,6.30774558,2034.9,2034.1,0.00554004]
[1772118968801,6.30774558,2034.7,2034.1,0.00554004]
[1772118968992,6.30774558,2034.5,2034.1,0.00554004]
[1772118969192,6.30774558,2034.8,2033.7,6.39857613]
[1772118969393,6.55349558,2034.5,2032.9,6.39857613]
[1772118969789,6.55349558,2034.5,2032.9,6.61967155]
[1772118969994,6.30774558,2034.2,2032.9,6.39857613]
[1772118970194,6.30774558,2034.0,2032.9,6.40237196]
[1772118970696,6.30774558,2034.0,2032.9,12.81237196]
[1772118970901,6.30774558,2034.3,2033.1,6.39857613]
[1772118971296,6.30774558,2034.6,2033.3,6.39857613]
[1772118971599,6.30774558,2034.6,2033.5,6.61974153]
[1772118971801,6.30774558,2034.6,2033.7,6.39857613]
[1772118972097,6.30774558,2034.6,2033.6,11.40392074]
[1772118972293,6.30774558,2034.6,2033.6,6.411]
[1772118972497,6.55351558,2034.3,2033.2,6.39857613]
[1772118972795,6.55351558,2034.3,2032.9,0.00379583]
[1772118972796,6.30774558,2033.8,2032.9,0.00379583]
[1772118973001,6.55358558,2033.7,2032.9,6.40237196]
[1772118973195,6.55358558,2033.7,2032.9,0.00379583]
[1772118973702,6.30774558,2033.7,2032.9,6.40237196]
[1772118974299,6.30774558,2033.5,2032.9,0.00379583]
[1772118975197,6.30774558,2033.5,2032.4,6.411]
[1772118975397,6.30774558,2033.5,2032.5,6.39857613]
[1772118975594,0.00360594,2033.8,2032.5,11.71242238]
[1772118975800,0.00360594,2033.8,2032.7,6.39857613]
[1772118976306,6.31135152,2033.8,2032.9,6.39857613]
[1772118976500,6.30774558,2033.5,2032.7,0.00604866]
[1772118977300,6.30774558,2033.3,2032.7,0.00604866]
[1772118977502,6.30774558,2033.1,2031.7,7.64880951]
[1772118977800,6.30774558,2032.9,2031.7,7.64880951]
[1772118978006,6.30774558,2032.9,2031.8,5.45520295]
[1772118978304,6.30774558,2032.7,2031.7,7.64880951]
[1772118978493,6.30774558,2032.7,2031.7,7.65368139]
[1772118979307,6.30774558,2032.5,2031.7,1.25510526]
[1772118979606,6.30774558,2032.3,2031.2,6.39857613]
[1772118980302,6.30774558,2032.3,2029.8,13.24]
[1772118980303,6.30774558,2029.8,2027.7,6.06573]
[1772118980500,6.30774558,2028.5,2027.5,0.00411658]
[1772118980701,6.30559,2029.9,2028.0,6.39857613]
[1772118980895,6.30774558,2031.4,2028.8,6.39857613]
[1772118981098,12.36339558,2031.1,2029.0,6.39857613]
[1772118981312,6.30774558,2030.8,2029.2,6.39857613]
[1772118981607,6.30774558,2030.6,2029.2,6.39857613]
[1772118981802,6.30774558,2030.4,2029.3,0.00411658]
[1772118981998,0.00408696,2030.6,2029.3,6.40269271]
[1772118981999,7.07733639,2030.3,2029.3,6.40269271]
[1772118982198,13.13592639,2030.2,2029.2,0.00407242]
[1772118982404,6.30774558,2029.7,2029.2,0.00407242]
[1772118982595,6.30774558,2029.5,2028.2,6.39857613]
[1772118982906,6.30774558,2028.9,2027.6,6.39857613]
[1772118983197,6.30774558,2028.9,2027.5,6.63354494]
[1772118983198,6.30774558,2029.3,2027.9,6.39857613]
[1772118983600,12.37055558,2028.7,2028.0,0.00411658]
[1772118983795,6.0646,2028.1,2027.2,1.06331247]
[1772118984100,6.30774558,2027.8,2027.2,0.28146133]
[1772118984306,5.31968372,2028.0,2027.1,0.28146133]
[1772118984507,0.053017,2027.8,2026.7,7.6635895]
[1772118984809,0.053017,2027.6,2026.7,0.0048269]
[1772118985101,6.0658,2027.7,2025.7,7.72125112]
[1772118985102,6.06854,2026.8,2025.7,7.72125112]
[1772118985299,0.24661,2027.4,2025.8,6.412]
[1772118985505,0.83550857,2027.7,2026.0,7.72125112]
[1772118985702,0.83550857,2027.7,2026.1,7.72125112]
[1772118986007,6.89934857,2028.4,2026.8,7.72125112]
[1772118986205,0.9102518,2028.1,2027.0,7.91823976]
[1772118986505,2.10355916,2027.8,2026.5,7.91823976]
[1772118986803,2.10355916,2027.8,2026.6,5.29218691]
[1772118987004,6.06617,2027.6,2026.6,5.29630349]
[1772118987201,1.83450041,2027.5,2026.6,0.00411658]
[1772118987401,6.06643,2027.5,2026.6,0.00411658]
[1772118987596,6.06946,2026.5,2026.1,0.00627492]
[1772118987897,6.06761,2027.1,2025.8,7.91823976]
[1772118987898,0.24665,2027.1,2025.8,7.91823976]
[1772118988099,1.96128819,2027.2,2025.8,7.91823976]
[1772118988303,0.00402736,2027.8,2026.0,7.91823976]
[1772118988604,2.00933599,2027.8,2026.1,5.25328786]
[1772118988794,0.00402736,2027.8,2026.2,7.91823976]
[1772118989001,6.06846,2026.9,2026.4,7.91823976]
[1772118989197,6.067,2027.3,2026.1,7.92351819]
[1772118989506,6.06827,2026.9,2026.1,7.92351819]
[1772118989908,6.06887,2026.7,2026.1,0.00527843]
[1772118990104,6.07005,2026.3,2025.4,7.91823976]
[1772118990304,6.07005,2026.3,2023.7,6.36221902]
[1772118990305,8.62042478,2024.4,2023.7,0.28454902]
[1772118990606,7.113,2026.3,2023.7,0.28454902]
[1772118990607,5.47227368,2026.2,2024.0,7.91823976]
[1772118990809,9.47730646,2026.4,2025.1,7.93277407]
[1772118991106,2.34330646,2026.0,2025.1,7.92302762]
[1772118991303,6.31798,2025.9,2025.2,0.28454902]
[1772118991603,6.07029,2026.2,2025.2,8.20278878]
[1772118991802,15.74435443,2026.2,2025.2,8.20278878]
[1772118991998,0.00505377,2026.4,2025.2,8.20278878]
[1772118992206,2.27446224,2026.4,2025.2,8.20278878]
[1772118992401,2.26940847,2026.3,2025.2,8.20278878]
[1772118992603,8.63292826,2025.8,2025.1,0.00478786]
[1772118992800,2.3098404,2025.9,2025.1,0.28454902]
[1772118993000,6.07158,2025.8,2025.1,0.28454902]
[1772118993205,2.47938055,2025.7,2024.5,7.91823976]
[1772118993603,2.47938055,2025.7,2024.6,8.20278878]
[1772118993802,8.84097163,2025.9,2024.6,7.91823976]
[1772118994012,2.52298163,2025.7,2024.7,8.20278878]
[1772118994212,7.167,2025.8,2024.7,8.20278878]
[1772118994508,7.167,2025.8,2023.6,6.3251]
[1772118994509,8.60222084,2025.1,2024.1,7.91823976]
[1772118994809,2.28155084,2024.9,2023.5,5.3208141]
[1772118995013,2.28155084,2024.7,2023.6,7.91823976]
[1772118995308,6.3208,2025.0,2023.3,5.3208141]
[1772118995309,2.39354877,2024.9,2023.3,7.91823976]
[1772118995509,2.39354877,2024.9,2022.4,6.08169]
[1772118995510,2.39354877,2025.8,2024.1,7.91823976]
[1772118995709,2.39354877,2025.8,2024.3,7.91823976]
[1772118996210,2.45617295,2026.8,2025.1,7.91823976]
[1772118996413,2.45617295,2027.2,2025.3,7.91823976]
[1772118996614,2.49822345,2027.3,2025.4,7.91823976]
[1772118996808,6.31331,2027.4,2025.6,7.91823976]
[1772118996809,2.50266202,2027.2,2025.6,7.91823976]
[1772118997012,0.00443857,2027.2,2025.6,7.91823976]
[1772118997210,0.00443857,2027.2,2025.8,7.91823976]
[1772118997418,0.00443857,2027.2,2026.1,7.91823976]
[1772118997717,0.00443857,2027.2,2026.3,7.91823976]
[1772118997920,0.00443857,2027.2,2026.5,7.91823976]
[1772118998308,8.57155369,2026.9,2026.5,0.00429772]
[1772118998614,0.2467,2026.7,2025.8,7.91823976]
[1772118998812,2.54414488,2027.2,2025.9,7.91823976]
[1772118999013,6.31488,2026.9,2025.9,7.91823976]
[1772118999209,0.24668,2026.9,2025.9,7.91823976]
[1772118999406,6.31497,2026.9,2025.9,7.92410604]
[1772118999607,0.24672,2026.5,2025.9,0.00586628]
[1772119000013,0.24672,2026.5,2024.9,2.06705302]
[1772119000014,4.44687256,2026.3,2025.3,7.91823976]
[1772119000315,4.44545941,2026.1,2025.0,14.33323976]
[1772119000515,4.73167642,2026.0,2025.0,14.33323976]
[1772119000920,4.48489642,2026.5,2025.1,7.91823976]
[1772119001216,0.24671,2026.6,2025.1,8.1403553]
[1772119001416,0.24671,2026.6,2025.3,7.91823976]
[1772119001619,4.56881443,2026.5,2025.3,7.91823976]
[1772119002618,0.24676,2026.2,2025.0,7.92192481]
[1772119002821,0.24676,2026.2,2023.8,6.07728]